fUST/lending_fUST_20250120
["ID","MTS","AMOUNT","RATE_DAILY","PERIOD"]
[349666598,1737363057492,-500.0,0.00022191,3]
[349666599,1737363057501,-500.0,0.00022191,3]
[349666600,1737363057511,-500.0,0.00022191,3]
[349666601,1737363057522,-500.0,0.00022191,3]
[349666602,1737363057531,-500.0,0.00022191,3]
[349666603,1737363057540,-500.0,0.00022191,3]
[349666604,1737363057552,-10290.31,0.00022191,3]
[349666605,1737363057562,-500.0,0.00022191,3]
[349666606,1737363057571,-500.0,0.00022191,3]
[349666607,1737363057581,-500.0,0.00022191,3]
[349666608,1737363057590,-500.0,0.00022191,3]
[349666609,1737363057599,-500.0,0.00022191,3]
[349666610,1737363057608,-500.0,0.00022191,3]
[349666611,1737363057618,-500.0,0.00022191,3]
[349666612,1737363057628,-500.0,0.00022191,3]
[349666613,1737363057637,-500.0,0.00022191,3]
[349666614,1737363057646,-500.0,0.00022191,3]
[349666615,1737363057656,-1504.83,0.00022191,3]
[349666616,1737363057666,-500.0,0.00022191,3]
[349666617,1737363057677,-500.0,0.00022191,3]
[349666618,1737363057686,-500.0,0.00022191,3]
[349666619,1737363057695,-500.0,0.00022191,3]
[349666620,1737363057704,-5310.12,0.00022191,3]
[349666621,1737363057713,-500.0,0.00022191,3]
[349666622,1737363057723,-9119.31,0.00022191,3]
[349666623,1737363057733,-623.93,0.00022191,3]
[349666624,1737363057742,-500.0,0.00022191,3]
[349666625,1737363057751,-500.0,0.00022191,3]
[349666626,1737363057761,-500.0,0.00022191,3]
[349666627,1737363057771,-505.19114522,0.00022191,3]
[349666628,1737363057781,-500.0,0.00022191,3]
[349666629,1737363057791,-500.0,0.00022191,3]
[349666630,1737363057800,-500.0,0.00022191,3]
[349666631,1737363057810,-500.0,0.00022191,3]
[349666632,1737363057822,-500.0,0.00022191,3]
[349666633,1737363057835,-505.36012809,0.00022191,3]
[349666634,1737363057844,-500.0,0.00022191,3]
[349666635,1737363057854,-500.0,0.00022191,3]
[349666636,1737363057863,-500.0,0.00022191,3]
[349666637,1737363057872,-500.0,0.00022191,3]
[349666638,1737363057881,-2278.86,0.00022191,3]
[349666639,1737363057890,-1991.91,0.00022191,3]
[349666640,1737363057899,-500.0,0.00022191,3]
[349666641,1737363057909,-257.93248499,0.00022191,3]
[349666642,1737363057918,-500.0,0.00022191,3]
[349666643,1737363057932,-500.0,0.00022191,3]
[349666644,1737363057941,-500.0,0.00022191,3]
[349666645,1737363057951,-1608.79,0.00022191,3]
[349666646,1737363057960,-500.0,0.00022191,3]
[349666647,1737363057969,-513.88,0.00022191,3]
[349666648,1737363057979,-465.802518,0.00022191,7]
[349666649,1737363057989,-465.802518,0.00022191,7]
[349666650,1737363057998,-500.0,0.00022191,3]
[349666651,1737363058008,-465.802518,0.00022191,7]
[349666652,1737363058017,-465.802514,0.00022191,7]
[349666653,1737363058026,-500.0,0.00022191,3]
[349666654,1737363058035,-500.0,0.00022191,3]
[349666655,1737363058044,-500.0,0.00022191,3]
[349666656,1737363058053,-1571.57,0.00022191,3]
[349666657,1737363058062,-500.0,0.00022191,3]
[349666658,1737363058072,-500.0,0.00022191,3]
[349666659,1737363058081,-500.0,0.00022191,3]
[349666660,1737363058090,-527.02,0.00022191,3]
[349666661,1737363058099,-5281.84,0.00022191,3]
[349666662,1737363058110,-500.0,0.00022191,3]
[349666663,1737363058119,-25872.62,0.00022191,3]
[349666664,1737363058129,-500.0,0.00022191,3]
[349666665,1737363058137,-500.0,0.00022191,3]
[349666666,1737363058146,-526.78,0.00022191,3]
[349666667,1737363058155,-500.0,0.00022191,2]
[349666668,1737363058164,-375.21804459,0.00022191,3]
[349666669,1737363058174,-229.57017966,0.00022191,3]
[349666670,1737363058184,-503.97914921,0.00022191,3]
[349666671,1737363058194,-154.513393,0.00022191,7]
[349666672,1737363058203,-154.513393,0.00022191,7]
[349666673,1737363058213,-154.513393,0.00022191,7]
[349666674,1737363058223,-154.513394,0.00022191,7]
[349666675,1737363058232,-500.0,0.00022191,3]
[349666676,1737363058241,-500.0,0.00022191,3]
[349666677,1737363058251,-564.99,0.00022191,3]
[349666678,1737363058260,-500.0,0.00022191,3]
[349666679,1737363058270,-500.0,0.00022191,3]
[349666680,1737363058279,-500.0,0.00022191,3]
[349666681,1737363058290,-1111.3,0.00022191,3]
[349666682,1737363058303,-500.0,0.00022191,3]
[349666683,1737363058315,-500.0,0.00022191,3]
[349666684,1737363058325,-505.71204241,0.00022191,3]
[349666685,1737363058334,-500.0,0.00022191,3]
[349666686,1737363058343,-8374.84,0.00022191,3]
[349666687,1737363058353,-500.0,0.00022191,3]
[349666688,1737363058362,-262.9,0.00022196,6]
[349666689,1737363058371,-3559.14,0.000222,14]
[349666690,1737363058380,-4228.9859397,0.000223,7]
[349666691,1737363058390,-12110.63409176,0.00022328,5]
[349666692,1737363058399,-1902.11129003,0.00022328,5]
[349666693,1737363058407,-151.0,0.00022328,7]
[349666694,1737363058417,-500.0,0.00022328,3]
[349666695,1737363058493,-500.0,0.00022328,3]
[349666696,1737363058502,-500.0,0.00022328,3]
[349666697,1737363058511,-504.69102069,0.00022328,3]
[349666698,1737363058522,-194.49056555,0.00022328,3]
[349666699,1737363058531,-500.0,0.00022328,3]
[349666700,1737363058540,-510.84922169,0.00022328,3]
[349666701,1737363058549,-500.0,0.00022328,3]
[349666702,1737363058561,-500.0,0.00022328,3]
[349666703,1737363058570,-500.0,0.00022328,3]
[349666704,1737363058579,-500.0,0.00022328,3]
[349666705,1737363058589,-500.0,0.00022328,3]
[349666706,1737363058599,-500.0,0.00022328,3]
[349666707,1737363058608,-500.0,0.00022328,3]
[349666708,1737363058618,-500.0,0.00022328,3]
[349666709,1737363058628,-500.0,0.00022328,3]
[349666710,1737363058637,-500.0,0.00022328,3]
[349666711,1737363058647,-500.0,0.00022328,3]
[349666712,1737363058656,-504.90973319,0.00022328,3]
[349666713,1737363058666,-500.0,0.00022328,3]
[349666714,1737363058677,-500.0,0.00022328,3]
[349666715,1737363058687,-469.10619821,0.00022328,3]
[349666716,1737363058696,-391.26861746,0.00022328,3]
[349666717,1737363058706,-500.0,0.00022328,3]
[349666718,1737363058715,-510.98275922,0.00022328,3]
[349666719,1737363058725,-433.06001554,0.00022328,3]
[349666720,1737363058734,-500.0,0.00022328,3]
[349666721,1737363058744,-500.0,0.00022328,3]
[349666722,1737363058753,-500.0,0.00022328,3]
[349666723,1737363058763,-500.0,0.00022328,3]
[349666724,1737363058773,-500.0,0.00022328,3]
[349666725,1737363058782,-1924.65,0.00022328,3]
[349666726,1737363058792,-500.0,0.00022328,3]
[349666727,1737363058802,-325.08380715,0.00022328,3]
[349666728,1737363058811,-500.0,0.00022328,3]
[349666729,1737363058820,-500.0,0.00022328,3]
[349666730,1737363058829,-500.0,0.00022328,3]
[349666731,1737363058838,-500.0,0.00022328,3]
[349666732,1737363058848,-500.0,0.00022328,3]
[349666733,1737363058857,-500.0,0.00022328,3]
[349666734,1737363058867,-505.80385767,0.00022328,3]
[349666735,1737363058876,-505.42000824,0.00022328,3]
[349666736,1737363058885,-500.0,0.00022328,3]
[349666737,1737363058894,-500.0,0.00022328,3]
[349666738,1737363058903,-500.0,0.00022328,3]
[349666739,1737363058912,-188.0,0.00022328,2]
[349666740,1737363058923,-500.0,0.00022328,3]
[349666741,1737363058933,-500.0,0.00022328,3]
[349666742,1737363058943,-500.0,0.00022328,3]
[349666743,1737363058952,-500.0,0.00022328,3]
[349666744,1737363058961,-500.0,0.00022328,3]
[349666745,1737363058971,-500.0,0.00022328,3]
[349666746,1737363058981,-500.0,0.00022328,3]
[349666747,1737363058990,-566.95525605,0.00022328,3]
[349666748,1737363059000,-500.0,0.00022328,3]
[349666749,1737363059010,-500.0,0.00022328,2]
[349666750,1737363059020,-500.0,0.00022328,3]
[349666751,1737363059030,-801.81,0.00022328,3]
[349666752,1737363059039,-611.87,0.00022328,3]
[349666753,1737363059048,-500.0,0.00022328,3]
[349666754,1737363059057,-500.0,0.00022328,3]
[349666755,1737363059067,-513.01938615,0.00022328,3]
[349666756,1737363059076,-505.86352423,0.00022328,3]
[349666757,1737363059086,-500.0,0.00022328,3]
[349666758,1737363059095,-500.0,0.00022328,3]
[349666759,1737363059104,-702.35,0.00022328,3]
[349666760,1737363059113,-568.89,0.00022328,3]
[349666761,1737363059123,-500.0,0.00022328,3]
[349666762,1737363059132,-705.02,0.00022328,3]
[349666763,1737363059141,-500.0,0.00022328,3]
[349666764,1737363059151,-500.0,0.00022328,3]
[349666765,1737363059161,-500.0,0.00022328,3]
[349666766,1737363059170,-500.0,0.00022328,3]
[349666767,1737363059182,-214.80058599,0.00022328,3]
[349666768,1737363059191,-500.0,0.00022328,3]
[349666769,1737363059200,-500.0,0.00022328,3]
[349666770,1737363059210,-724.8,0.00022328,3]
[349666771,1737363059220,-500.0,0.00022328,3]
[349666772,1737363059230,-500.0,0.00022328,3]
[349666773,1737363059240,-500.0,0.00022328,3]
[349666774,1737363059250,-500.0,0.00022328,3]
[349666775,1737363059259,-500.0,0.00022328,3]
[349666776,1737363059269,-500.0,0.00022328,3]
[349666777,1737363059279,-500.0,0.00022328,3]
[349666778,1737363059288,-500.0,0.00022328,3]
[349666779,1737363059297,-500.0,0.00022328,3]
[349666780,1737363059306,-500.0,0.00022328,3]
[349666781,1737363059316,-500.0,0.00022328,3]
[349666782,1737363059325,-500.0,0.00022328,3]
[349666783,1737363059336,-500.0,0.00022328,3]
[349666784,1737363059347,-695.6,0.00022328,3]
[349666785,1737363059360,-500.0,0.00022328,3]
[349666786,1737363059377,-500.0,0.00022328,3]
[349666787,1737363059386,-500.0,0.00022328,3]
[349666788,1737363059396,-500.0,0.00022328,3]
[349666789,1737363059405,-500.0,0.00022328,3]
[349666790,1737363059415,-555.03,0.00022328,3]
[349666791,1737363059425,-500.0,0.00022328,3]
[349666792,1737363059435,-384.12416842,0.00022328,3]
[349666793,1737363059444,-150.70274422,0.00022328,3]
[349666794,1737363059453,-500.0,0.00022328,3]
[349666795,1737363059462,-500.0,0.00022328,3]
[349666796,1737363059476,-500.0,0.00022328,3]
[349666797,1737363059486,-500.0,0.00022328,3]
[349666798,1737363059495,-500.0,0.00022328,3]
[349666799,1737363059504,-500.0,0.00022328,3]
[349666800,1737363059514,-500.0,0.00022328,3]
[349666801,1737363059525,-500.0,0.00022328,3]
[349666802,1737363059535,-571.38258213,0.00022328,3]
[349666803,1737363059544,-500.0,0.00022328,3]
[349666804,1737363059554,-500.0,0.00022328,3]
[349666805,1737363059566,-1920.08,0.00022328,3]
[349666806,1737363059575,-500.0,0.00022328,3]
[349666807,1737363059584,-500.0,0.00022328,3]
[349666808,1737363059594,-1764.79,0.00022328,2]
[349666809,1737363059603,-741.08,0.00022328,3]
[349666810,1737363059612,-500.0,0.00022328,3]
[349666811,1737363059622,-500.0,0.00022328,3]
[349666812,1737363059631,-500.0,0.00022328,3]
[349666813,1737363059641,-500.0,0.00022328,3]
[349666814,1737363059651,-801.63,0.00022328,3]
[349666815,1737363059661,-500.0,0.00022328,3]
[349666816,1737363059741,-3357.16,0.00022328,3]
[349666817,1737363059751,-500.0,0.00022328,3]
[349666818,1737363059761,-500.0,0.00022328,3]
[349666819,1737363059771,-500.0,0.00022328,3]
[349666820,1737363059781,-3137.36,0.00022328,3]
[349666821,1737363059790,-302.36693868,0.00022328,3]
[349666822,1737363059800,-500.0,0.00022328,3]
[349666823,1737363059810,-500.0,0.00022328,3]
[349666824,1737363059820,-500.0,0.00022328,3]
[349666825,1737363059830,-1224.43,0.00022328,3]
[349666826,1737363059839,-973.75,0.00022328,3]
[349666827,1737363059848,-545.58,0.00022328,3]
[349666828,1737363059858,-500.0,0.00022328,3]
[349666829,1737363059867,-500.0,0.00022328,3]
[349666830,1737363059876,-1604.98,0.00022328,3]
[349666831,1737363059885,-503.2,0.00022328,3]
[349666832,1737363059895,-500.0,0.00022328,3]
[349666833,1737363059904,-500.0,0.00022328,3]
[349666834,1737363059913,-500.0,0.00022328,3]
[349666835,1737363059923,-500.0,0.00022328,3]
[349666836,1737363059933,-500.0,0.00022328,3]
[349666837,1737363059943,-500.0,0.00022328,3]
[349666838,1737363059953,-500.0,0.00022328,3]
[349666839,1737363059963,-500.0,0.00022328,3]
[349666840,1737363059972,-500.0,0.00022328,3]
[349666841,1737363059982,-500.0,0.00022328,3]
[349666842,1737363059992,-10290.31,0.00022328,3]
[349666843,1737363060002,-500.0,0.00022328,3]
[349666844,1737363060011,-500.0,0.00022328,3]
[349666845,1737363060021,-500.0,0.00022328,3]
[349666846,1737363060032,-500.0,0.00022328,3]
[349666847,1737363060042,-500.0,0.00022328,3]
[349666848,1737363060051,-500.0,0.00022328,3]
[349666849,1737363060062,-500.0,0.00022328,3]
[349666850,1737363060073,-500.0,0.00022328,3]
[349666851,1737363060083,-500.0,0.00022328,3]
[349666852,1737363060092,-1504.83,0.00022328,3]
[349666853,1737363060102,-500.0,0.00022328,3]
[349666854,1737363060111,-500.0,0.00022328,3]
[349666855,1737363060121,-305.84971959,0.00022328,3]
[349666856,1737363060130,-5310.12,0.00022328,3]
[349666857,1737363060140,-500.0,0.00022328,3]
[349666858,1737363060150,-9119.31,0.00022328,3]
[349666859,1737363060160,-623.93,0.00022328,3]
[349666860,1737363060169,-500.0,0.00022328,3]
[349666861,1737363060180,-500.0,0.00022328,3]
[349666862,1737363060190,-500.0,0.00022328,3]
[349666863,1737363060200,-404.05522,0.00022328,3]
[349666864,1737363060210,-500.0,0.00022328,3]
[349666865,1737363060220,-508.10355122,0.00022328,3]
[349666866,1737363060230,-500.0,0.00022328,3]
[349666867,1737363060240,-500.0,0.00022328,3]
[349666868,1737363060250,-500.0,0.00022328,3]
[349666869,1737363060260,-500.0,0.00022328,3]
[349666870,1737363060270,-518.98851581,0.00022328,3]
[349666871,1737363060280,-2278.86,0.00022328,3]
[349666872,1737363060290,-500.0,0.00022328,3]
[349666873,1737363060300,-1991.91,0.00022328,3]
[349666874,1737363060310,-500.0,0.00022328,3]
[349666875,1737363060319,-500.0,0.00022328,3]
[349666876,1737363060333,-506.47519793,0.00022328,3]
[349666877,1737363060344,-500.0,0.00022328,3]
[349666878,1737363060355,-1608.79,0.00022328,3]
[349666879,1737363060365,-500.0,0.00022328,3]
[349666880,1737363060375,-513.88,0.00022328,3]
[349666881,1737363060384,-500.0,0.00022328,3]
[349666882,1737363060395,-500.0,0.00022328,3]
[349666883,1737363060405,-500.0,0.00022328,3]
[349666884,1737363060415,-500.0,0.00022328,3]
[349666885,1737363060424,-1571.57,0.00022328,3]
[349666886,1737363060434,-500.0,0.00022328,3]
[349666887,1737363060444,-520.32544148,0.00022328,3]
[349666888,1737363060454,-500.0,0.00022328,3]
[349666889,1737363060464,-527.02,0.00022328,3]
[349666890,1737363060474,-5281.84,0.00022328,3]
[349666891,1737363060486,-500.0,0.00022328,3]
[349666892,1737363060497,-25872.62,0.00022328,3]
[349666893,1737363060507,-500.0,0.00022328,3]
[349666894,1737363060517,-500.0,0.00022328,3]
[349666895,1737363060527,-526.78,0.00022328,3]
[349666896,1737363060537,-499.99237989,0.00022328,2]
[349666897,1737363060547,-500.0,0.00022328,3]
[349666898,1737363060558,-500.0,0.00022328,3]
[349666899,1737363060568,-564.99,0.00022328,3]
[349666900,1737363060577,-500.0,0.00022328,3]
[349666901,1737363060586,-500.0,0.00022328,3]
[349666902,1737363060595,-500.0,0.00022328,3]
[349666903,1737363060605,-1111.3,0.00022328,3]
[349666904,1737363060614,-500.0,0.00022328,3]
[349666905,1737363060624,-500.0,0.00022328,3]
[349666906,1737363060634,-500.0,0.00022328,3]
[349666907,1737363060643,-8374.84,0.00022328,3]
[349666908,1737363060653,-500.0,0.00022328,3]
[349666909,1737363060662,-4878.67711734,0.00022365,2]
[349666910,1737363060672,-500.0,0.00022373,2]
[349666911,1737363060684,-380.20456184,0.00022373,2]
[349666912,1737363060693,-500.0,0.00022373,2]
[349666913,1737363060703,-500.0,0.00022373,2]
[349666914,1737363060712,-500.25452671,0.00022373,2]
[349666915,1737363060722,-262.9,0.00022401,6]
[349666916,1737363060732,-152.16,0.00022443,2]
[349666917,1737363060741,-151.0,0.00022465,7]
[349666918,1737363060750,-500.0,0.00022465,3]
[349666919,1737363060761,-476.06211954,0.00022465,3]
[349666920,1737363060770,-500.0,0.00022465,3]
[349666921,1737363060779,-500.0,0.00022465,3]
[349666922,1737363060788,-500.0,0.00022465,3]
[349666923,1737363060797,-403.99238607,0.00022465,3]
[349666924,1737363060807,-500.0,0.00022465,3]
[349666925,1737363060817,-500.0,0.00022465,3]
[349666926,1737363060826,-289.06255099,0.00022465,3]
[349666927,1737363060897,-505.50538581,0.00022465,3]
[349666928,1737363060908,-500.0,0.00022465,3]
[349666929,1737363060917,-500.0,0.00022465,3]
[349666930,1737363060929,-500.0,0.00022465,3]
[349666931,1737363060938,-500.0,0.00022465,3]
[349666932,1737363060948,-500.0,0.00022465,3]
[349666933,1737363060958,-503.20152462,0.00022465,3]
[349666934,1737363060968,-504.50509516,0.00022465,3]
[349666935,1737363060978,-179.49069095,0.00022465,3]
[349666936,1737363060987,-500.0,0.00022465,3]
[349666937,1737363060997,-1924.65,0.00022465,3]
[349666938,1737363061006,-241.23389728,0.00022465,3]
[349666939,1737363061016,-500.0,0.00022465,3]
[349666940,1737363061026,-507.00233557,0.00022465,3]
[349666941,1737363061035,-500.0,0.00022465,3]
[349666942,1737363061045,-500.0,0.00022465,3]
[349666943,1737363061055,-500.0,0.00022465,3]
[349666944,1737363061065,-504.29348971,0.00022465,3]
[349666945,1737363061075,-500.0,0.00022465,3]
[349666946,1737363061085,-500.0,0.00022465,3]
[349666947,1737363061095,-500.0,0.00022465,3]
[349666948,1737363061105,-188.0,0.00022465,2]
[349666949,1737363061115,-500.0,0.00022465,3]
[349666950,1737363061124,-500.0,0.00022465,3]
[349666951,1737363061134,-500.0,0.00022465,3]
[349666952,1737363061144,-500.0,0.00022465,3]
[349666953,1737363061154,-500.0,0.00022465,3]
[349666954,1737363061164,-589.14975413,0.00022465,3]
[349666955,1737363061175,-500.0,0.00022465,3]
[349666956,1737363061190,-500.0,0.00022465,3]
[349666957,1737363061200,-500.0,0.00022465,2]
[349666958,1737363061210,-500.0,0.00022465,3]
[349666959,1737363061220,-801.81,0.00022465,3]
[349666960,1737363061230,-611.87,0.00022465,3]
[349666961,1737363061240,-506.86573039,0.00022465,3]
[349666962,1737363061250,-505.03791397,0.00022465,3]
[349666963,1737363061260,-500.0,0.00022465,3]
[349666964,1737363061270,-500.0,0.00022465,3]
[349666965,1737363061280,-702.35,0.00022465,3]
[349666966,1737363061290,-568.89,0.00022465,3]
[349666967,1737363061300,-500.0,0.00022465,3]
[349666968,1737363061310,-705.02,0.00022465,3]
[349666969,1737363061320,-500.0,0.00022465,3]
[349666970,1737363061330,-500.0,0.00022465,3]
[349666971,1737363061340,-500.0,0.00022465,3]
[349666972,1737363061351,-500.0,0.00022465,3]
[349666973,1737363061361,-500.0,0.00022465,3]
[349666974,1737363061371,-500.0,0.00022465,3]
[349666975,1737363061381,-724.8,0.00022465,3]
[349666976,1737363061391,-500.0,0.00022465,3]
[349666977,1737363061402,-500.0,0.00022465,3]
[349666978,1737363061412,-500.0,0.00022465,3]
[349666979,1737363061421,-500.0,0.00022465,3]
[349666980,1737363061435,-500.0,0.00022465,3]
[349666981,1737363061445,-500.0,0.00022465,3]
[349666982,1737363061454,-500.0,0.00022465,3]
[349666983,1737363061465,-500.0,0.00022465,3]
[349666984,1737363061484,-500.0,0.00022465,3]
[349666985,1737363061496,-500.0,0.00022465,3]
[349666986,1737363061506,-500.0,0.00022465,3]
[349666987,1737363061519,-500.0,0.00022465,3]
[349666988,1737363061529,-500.0,0.00022465,3]
[349666989,1737363061539,-695.6,0.00022465,3]
[349666990,1737363061548,-500.0,0.00022465,3]
[349666991,1737363061561,-500.0,0.00022465,3]
[349666992,1737363061571,-500.0,0.00022465,3]
[349666993,1737363061581,-500.0,0.00022465,3]
[349666994,1737363061590,-500.0,0.00022465,3]
[349666995,1737363061600,-555.03,0.00022465,3]
[349666996,1737363061610,-500.0,0.00022465,3]
[349666997,1737363061619,-500.0,0.00022465,3]
[349666998,1737363061628,-500.0,0.00022465,3]
[349666999,1737363061637,-500.0,0.00022465,3]
[349667000,1737363061648,-500.0,0.00022465,3]
[349667001,1737363061657,-500.0,0.00022465,3]
[349667002,1737363061666,-500.0,0.00022465,3]
[349667003,1737363061678,-500.0,0.00022465,3]
[349667004,1737363061687,-500.0,0.00022465,3]
[349667005,1737363061697,-500.0,0.00022465,3]
[349667006,1737363061706,-1920.08,0.00022465,3]
[349667007,1737363061716,-500.0,0.00022465,3]
[349667008,1737363061728,-500.0,0.00022465,3]
[349667009,1737363061741,-1764.79,0.00022465,2]
[349667010,1737363061750,-741.08,0.00022465,3]
[349667011,1737363061759,-500.0,0.00022465,3]
[349667012,1737363061768,-500.0,0.00022465,3]
[349667013,1737363061777,-500.0,0.00022465,3]
[349667014,1737363061786,-500.0,0.00022465,3]
[349667015,1737363061795,-801.63,0.00022465,3]
[349667016,1737363061804,-3357.16,0.00022465,3]
[349667017,1737363061814,-500.0,0.00022465,3]
[349667018,1737363061823,-500.04757326,0.00022465,3]
[349667019,1737363061833,-500.0,0.00022465,3]
[349667020,1737363061842,-3137.36,0.00022465,3]
[349667021,1737363061852,-500.0,0.00022465,3]
[349667022,1737363061861,-500.0,0.00022465,3]
[349667023,1737363061871,-500.0,0.00022465,3]
[349667024,1737363061880,-1224.43,0.00022465,3]
[349667025,1737363061890,-973.75,0.00022465,3]
[349667026,1737363061900,-500.0,0.00022465,3]
[349667027,1737363061910,-1604.98,0.00022465,3]
[349667028,1737363061920,-500.0,0.00022465,3]
[349667029,1737363061989,-500.0,0.00022465,3]
[349667030,1737363061999,-500.0,0.00022465,3]
[349667031,1737363062009,-500.0,0.00022465,3]
[349667032,1737363062019,-500.0,0.00022465,3]
[349667033,1737363062028,-485.15150971,0.00022465,3]
[349667034,1737363062038,-554.00550582,0.00022465,3]
[349667035,1737363062049,-500.0,0.00022465,3]
[349667036,1737363062059,-507.68273784,0.00022465,3]
[349667037,1737363062068,-10290.31,0.00022465,3]
[349667038,1737363062077,-500.0,0.00022465,3]
[349667039,1737363062087,-500.0,0.00022465,3]
[349667040,1737363062097,-500.0,0.00022465,3]
[349667041,1737363062106,-500.0,0.00022465,3]
[349667042,1737363062116,-500.0,0.00022465,3]
[349667043,1737363062126,-500.0,0.00022465,3]
[349667044,1737363062136,-1504.83,0.00022465,3]
[349667045,1737363062146,-500.0,0.00022465,3]
[349667046,1737363062156,-500.0,0.00022465,3]
[349667047,1737363062166,-5310.12,0.00022465,3]
[349667048,1737363062176,-500.0,0.00022465,3]
[349667049,1737363062192,-9119.31,0.00022465,3]
[349667050,1737363062202,-623.93,0.00022465,3]
[349667051,1737363062212,-500.0,0.00022465,3]
[349667052,1737363062222,-500.0,0.00022465,3]
[349667053,1737363062232,-500.0,0.00022465,3]
[349667054,1737363062242,-500.0,0.00022465,3]
[349667055,1737363062252,-500.0,0.00022465,3]
[349667056,1737363062261,-500.0,0.00022465,3]
[349667057,1737363062271,-500.0,0.00022465,3]
[349667058,1737363062281,-500.0,0.00022465,3]
[349667059,1737363062291,-2278.86,0.00022465,3]
[349667060,1737363062300,-500.0,0.00022465,3]
[349667061,1737363062310,-1991.91,0.00022465,3]
[349667062,1737363062320,-500.0,0.00022465,3]
[349667063,1737363062330,-520.83,0.00022465,3]
[349667064,1737363062340,-500.0,0.00022465,3]
[349667065,1737363062350,-1608.79,0.00022465,3]
[349667066,1737363062359,-500.0,0.00022465,3]
[349667067,1737363062369,-513.88,0.00022465,3]
[349667068,1737363062379,-500.0,0.00022465,3]
[349667069,1737363062388,-500.0,0.00022465,3]
[349667070,1737363062398,-500.0,0.00022465,3]
[349667071,1737363062407,-500.0,0.00022465,3]
[349667072,1737363062417,-1571.57,0.00022465,3]
[349667073,1737363062426,-500.0,0.00022465,3]
[349667074,1737363062438,-500.0,0.00022465,3]
[349667075,1737363062448,-527.02,0.00022465,3]
[349667076,1737363062462,-5281.84,0.00022465,3]
[349667077,1737363062482,-25872.62,0.00022465,3]
[349667078,1737363062499,-500.0,0.00022465,3]
[349667079,1737363062517,-500.0,0.00022465,3]
[349667080,1737363062536,-526.78,0.00022465,3]
[349667081,1737363062553,-500.0,0.00022465,3]
[349667082,1737363062571,-500.0,0.00022465,3]
[349667083,1737363062586,-564.99,0.00022465,3]
[349667084,1737363062602,-500.0,0.00022465,3]
[349667085,1737363062620,-500.0,0.00022465,3]
[349667086,1737363062638,-500.0,0.00022465,3]
[349667087,1737363062654,-1111.3,0.00022465,3]
[349667088,1737363062668,-500.0,0.00022465,3]
[349667089,1737363062686,-500.0,0.00022465,3]
[349667090,1737363062701,-500.0,0.00022465,3]
[349667091,1737363062716,-8374.84,0.00022465,3]
[349667092,1737363062730,-500.0,0.00022465,3]
[349667093,1737363062745,-6954.64,0.000225,5]
[349667094,1737363062758,-1374.84,0.000225,2]
[349667095,1737363062773,-188.75,0.000225,2]
[349667096,1737363062787,-21740.19519299,0.000225,2]
[349667097,1737363062802,-280.819828,0.000225,2]